Workbook

Sheet 12 か月のキャッシュ フロー
A2: 12 か月のキャッシュ フロー | O2: 年度開始日: | P2: 2013-07-01
A3: 会社名
A4: 郵便番号、都道府県、市区町村、番地
A5: 電話、電子メール、Web
B7: 開始金額 | C7: =FiscalYear -> 2013-07-01 | D7: =DATE(YEAR(C7),MONTH(C7)+1,1) -> 2013-08-01 | E7: =DATE(YEAR(D7),MONTH(D7)+1,1) -> 2013-09-01 | F7: 2013-10-01 | G7: 2013-11-01 | H7: 2013-12-01 | I7: 2014-01-01 | J7: 2014-02-01 | K7: 2014-03-01 | L7: 2014-04-01 | M7: 2014-05-01 | N7: 2014-06-01 | O7: 月 平均 | P7: 概要
A8: 現金概要
A9: 手元現金 (月初) | B9: 5,500,000 | C9: =IF(領収書[[#Totals],[Column3]]+支払い[[#Totals],[Column3]]=0,"",B11) -> 6,759,300 | D9: =IF(領収書[[#Totals],[Column4]]+支払い[[#Totals],[Column4]]=0,"",C11) -> 5,426,500 | E9: =IF(領収書[[#Totals],[Column5]]+支払い[[#Totals],[Column5]]=0,"",D11) -> 5,573,900 | F9: =IF(領収書[[#Totals],[Column6]]+支払い[[#Totals],[Column6]]=0,"",E11) -> 6,929,000 | G9: =IF(領収書[[#Totals],[Column7]]+支払い[[#Totals],[Column7]]=0,"",F11) -> 6,561,800 | H9: =IF(領収書[[#Totals],[Column8]]+支払い[[#Totals],[Column8]]=0,"",G11) ->  | I9: =IF(領収書[[#Totals],[Column9]]+支払い[[#Totals],[Column9]]=0,"",H11) ->  | J9: =IF(領収書[[#Totals],[Column10]]+支払い[[#Totals],[Column10]]=0,"",I11) ->  | K9: =IF(領収書[[#Totals],[Column11]]+支払い[[#Totals],[Column11]]=0,"",J11) ->  | L9: =IF(領収書[[#Totals],[Column12]]+支払い[[#Totals],[Column12]]=0,"",K11) ->  | M9: =IF(領収書[[#Totals],[Column13]]+支払い[[#Totals],[Column13]]=0,"",L11) ->  | N9: =IF(領収書[[#Totals],[Column14]]+支払い[[#Totals],[Column14]]=0,"",M11) ->  | O9: =IFERROR(AVERAGE(概要[[#This Row],[Column3]:[Column14]]),"") -> 6,250,100
A10: 使用できる現金 (精算前の手元現金および受取現金) | B10: =SUM(B9,領収書[[#Totals],[Column2]]) -> 6,759,300 | C10: =IF(C9="","",SUM(C9,領収書[[#Totals],[Column3]])) -> 7,606,500 | D10: =IF(D9="","",SUM(D9,領収書[[#Totals],[Column4]])) -> 8,330,100 | E10: =IF(E9="","",SUM(E9,領収書[[#Totals],[Column5]])) -> 9,103,200 | F10: =IF(F9="","",SUM(F9,領収書[[#Totals],[Column6]])) -> 8,966,200 | G10: =IF(G9="","",SUM(G9,領収書[[#Totals],[Column7]])) -> 7,620,000 | H10: =IF(H9="","",SUM(H9,領収書[[#Totals],[Column8]])) ->  | I10: =IF(I9="","",SUM(I9,領収書[[#Totals],[Column9]])) ->  | J10: =IF(J9="","",SUM(J9,領収書[[#Totals],[Column10]])) ->  | K10: =IF(K9="","",SUM(K9,領収書[[#Totals],[Column11]])) ->  | L10: =IF(L9="","",SUM(L9,領収書[[#Totals],[Column12]])) ->  | M10: =IF(M9="","",SUM(M9,領収書[[#Totals],[Column13]])) ->  | N10: =IF(N9="","",SUM(N9,領収書[[#Totals],[Column14]])) ->  | O10: =IFERROR(AVERAGE(概要[[#This Row],[Column3]:[Column14]]),"") -> 8,325,200
A11: 現金持ち高 (月末) | B11: =(B10-支払い[[#Totals],[Column2]]) -> 6,759,300 | C11: =IFERROR(C10-支払い[[#Totals],[Column3]],"") -> 5,426,500 | D11: =IFERROR(D10-支払い[[#Totals],[Column4]],"") -> 5,573,900 | E11: =IFERROR(E10-支払い[[#Totals],[Column5]],"") -> 6,929,000 | F11: =IFERROR(F10-支払い[[#Totals],[Column6]],"") -> 6,561,800 | G11: =IFERROR(G10-支払い[[#Totals],[Column7]],"") -> 5,141,300 | H11: =IFERROR(H10-支払い[[#Totals],[Column8]],"") ->  | I11: =IFERROR(I10-支払い[[#Totals],[Column9]],"") ->  | J11: =IFERROR(J10-支払い[[#Totals],[Column10]],"") ->  | K11: =IFERROR(K10-支払い[[#Totals],[Column11]],"") ->  | L11: =IFERROR(L10-支払い[[#Totals],[Column12]],"") ->  | M11: =IFERROR(M10-支払い[[#Totals],[Column13]],"") ->  | N11: =IFERROR(N10-支払い[[#Totals],[Column14]],"") ->  | O11: =IFERROR(AVERAGE(概要[[#This Row],[Column3]:[Column14]]),"") -> 5,926,500
A13: 現金収入
A14: 現金売上 | B14: 561,600 | C14: 388,900 | D14: 2,441,100 | E14: 3,164,200 | F14: 1,464,700 | G14: 303,400 | O14: =IFERROR(AVERAGE(領収書[[#This Row],[Column3]:[Column14]]),"") -> 1,552,460
A15: 口座からの集金 | B15: 449,800 | C15: 349,300 | D15: 198,700 | E15: 102,900 | F15: 291,100 | G15: 423,400 | O15: =IFERROR(AVERAGE(領収書[[#This Row],[Column3]:[Column14]]),"") -> 273,080
A16: 融資/その他の現金注入 | B16: 247,900 | C16: 109,000 | D16: 263,800 | E16: 262,200 | F16: 281,400 | G16: 331,400 | O16: =IFERROR(AVERAGE(領収書[[#This Row],[Column3]:[Column14]]),"") -> 249,560
A17: 総現金収入 | B17: =SUBTOTAL(109,領収書[Column2]) -> 1,259,300 | C17: =SUBTOTAL(109,領収書[Column3]) -> 847,200 | D17: =SUBTOTAL(109,領収書[Column4]) -> 2,903,600 | E17: =SUBTOTAL(109,領収書[Column5]) -> 3,529,300 | F17: =SUBTOTAL(109,領収書[Column6]) -> 2,037,200 | G17: =SUBTOTAL(109,領収書[Column7]) -> 1,058,200 | H17: =SUBTOTAL(109,領収書[Column8]) -> 0 | I17: =SUBTOTAL(109,領収書[Column9]) -> 0 | J17: =SUBTOTAL(109,領収書[Column10]) -> 0 | K17: =SUBTOTAL(109,領収書[Column11]) -> 0 | L17: =SUBTOTAL(109,領収書[Column12]) -> 0 | M17: =SUBTOTAL(109,領収書[Column13]) -> 0 | N17: =SUBTOTAL(109,領収書[Column14]) -> 0 | O17: =IFERROR(AVERAGE(領収書[[#Totals],[Column3]:[Column14]]),"") -> 864,625
A19: 現金支払い
A20: 購入 (内容を記入) | C20: 52,100 | D20: 32,300 | E20: 27,400 | F20: 45,100 | G20: 10,400 | O20: =IFERROR(AVERAGE(支払い[[#This Row],[Column3]:[Column14]]),"") -> 33,460
A21: 総賃金 (正確な引き出し額) | C21: 1,057,200 | D21: 1,451,400 | E21: 1,056,100 | F21: 1,317,000 | G21: 1,247,800 | O21: =IFERROR(AVERAGE(支払い[[#This Row],[Column3]:[Column14]]),"") -> 1,225,900
A22: 必需品 (事務用品) | C22: 25,000 | D22: 42,800 | E22: 16,500 | F22: 116,800 | G22: 34,500 | O22: =IFERROR(AVERAGE(支払い[[#This Row],[Column3]:[Column14]]),"") -> 47,120
A23: 修理 、メンテナンス | C23: 0 | D23: 220,000 | E23: 16,300 | F23: 6,700 | G23: 0 | O23: =IFERROR(AVERAGE(支払い[[#This Row],[Column3]:[Column14]]),"") -> 48,600
A24: 広告 | C24: 110,000 | D24: 62,500 | E24: 135,600 | F24: 0 | G24: 256,000 | O24: =IFERROR(AVERAGE(支払い[[#This Row],[Column3]:[Column14]]),"") -> 112,820
A25: 家賃 | C25: 350,000 | D25: 350,000 | E25: 350,000 | F25: 350,000 | G25: 350,000 | O25: =IFERROR(AVERAGE(支払い[[#This Row],[Column3]:[Column14]]),"") -> 350,000
A26: 公益事業 | C26: 28,500 | D26: 31,800 | E26: 15,100 | F26: 13,400 | G26: 22,800 | O26: =IFERROR(AVERAGE(支払い[[#This Row],[Column3]:[Column14]]),"") -> 22,320
A27: その他 (内容を記入) | C27: 12,300 | D27: 23,400 | E27: 12,300 | F27: 23,400 | G27: 12,300 | O27: =IFERROR(AVERAGE(支払い[[#This Row],[Column3]:[Column14]]),"") -> 16,740
A28: 融資元本支払い | C28: 400,000 | D28: 400,000 | E28: 400,000 | F28: 400,000 | G28: 400,000 | O28: =IFERROR(AVERAGE(支払い[[#This Row],[Column3]:[Column14]]),"") -> 400,000
A29: 資本財購入 (内容を記入) | C29: 67,900 | D29: 70,000 | E29: 67,900 | F29: 65,000 | G29: 67,900 | O29: =IFERROR(AVERAGE(支払い[[#This Row],[Column3]:[Column14]]),"") -> 67,740
A30: その他の設立費用 | C30: 40,000 | D30: 35,000 | E30: 40,000 | F30: 30,000 | G30: 40,000 | O30: =IFERROR(AVERAGE(支払い[[#This Row],[Column3]:[Column14]]),"") -> 37,000
A31: 準備金および第三者預託 | C31: 30,000 | D31: 30,000 | E31: 30,000 | F31: 30,000 | G31: 30,000 | O31: =IFERROR(AVERAGE(支払い[[#This Row],[Column3]:[Column14]]),"") -> 30,000
A32: 所有者の引き出し | C32: 7,000 | D32: 7,000 | E32: 7,000 | F32: 7,000 | G32: 7,000 | O32: =IFERROR(AVERAGE(支払い[[#This Row],[Column3]:[Column14]]),"") -> 7,000
A33: 総現金支払い | C33: =SUBTOTAL(109,支払い[Column3]) -> 2,180,000 | D33: =SUBTOTAL(109,支払い[Column4]) -> 2,756,200 | E33: =SUBTOTAL(109,支払い[Column5]) -> 2,174,200 | F33: =SUBTOTAL(109,支払い[Column6]) -> 2,404,400 | G33: =SUBTOTAL(109,支払い[Column7]) -> 2,478,700 | H33: =SUBTOTAL(109,支払い[Column8]) -> 0 | I33: =SUBTOTAL(109,支払い[Column9]) -> 0 | J33: =SUBTOTAL(109,支払い[Column10]) -> 0 | K33: =SUBTOTAL(109,支払い[Column11]) -> 0 | L33: =SUBTOTAL(109,支払い[Column12]) -> 0 | M33: =SUBTOTAL(109,支払い[Column13]) -> 0 | N33: =SUBTOTAL(109,支払い[Column14]) -> 0 | O33: =IFERROR(AVERAGE(支払い[[#Totals],[Column3]:[Column14]]),"") -> 999,458
A35: 重要な経営データ (非キャッシュフロー情報)
A36: 売上高 (金額) | B36: 200,000 | C36: 250,000 | D36: 225,700 | E36: 238,700 | F36: 266,400 | G36: 232,400 | O36: =IFERROR(AVERAGE(必須の経営データ[[#This Row],[Column2]:[Column14]]),"") -> 235,533
A37: 売掛金 | B37: 150,000 | C37: 50,000 | D37: 88,600 | E37: 103,500 | F37: 177,500 | G37: 83,900 | O37: =IFERROR(AVERAGE(必須の経営データ[[#This Row],[Column2]:[Column14]]),"") -> 108,917
A38: 回収不能金 (月末) | B38: 30,000 | C38: 20,000 | D38: 22,500 | E38: 26,900 | F38: 44,800 | G38: 35,900 | O38: =IFERROR(AVERAGE(必須の経営データ[[#This Row],[Column2]:[Column14]]),"") -> 30,017
A39: 手持在庫 (月末) | O39: =IFERROR(AVERAGE(必須の経営データ[[#This Row],[Column2]:[Column14]]),"") -> 
A40: 支払勘定 (月末) | O40: =IFERROR(AVERAGE(必須の経営データ[[#This Row],[Column2]:[Column14]]),"") -> 
A41: 減価償却 | O41: =IFERROR(AVERAGE(必須の経営データ[[#This Row],[Column2]:[Column14]]),"") -> 

Sheet キャッシュ フローの概要
J26: データ要素: | K26: 2
C27: (表示されるデータ要素の合計を変更するには、上のスライダーをドラッグします。)
